Workbook

Sheet Présentation
A1: C:\Users\fcachin\OneDrive - CentreJeanPerrin\Documents\logo_2018_fond_transparent_400_200.png | B1: Calcul de durée de restriction des contacts | F1: Mise à disposition par la SFPM et la SFMN
B2: après radiothérapie interne vectorisée RIV
B3: établi le | E3: =TODAY() -> 2023-03-24
A4: Nom | E4: Date du traitement
A5: Prénom | E5: Opérateur | F5: ?
A6: Né-e le | E6: Appareillage | F6: ?
A8: Eléments obligatoires à préciser (en jaune)
A9: Isotope (menu déroulant) | D9: =IF(F9="Iode-131-0%-fixation",Radiopharmaceutiques!E2,IF(F9="Iode-131-5%-fixation",Radiopharmaceutiques!E3, IF(F9="Iode-131-25%-fixation",Radiopharmaceutiques!E4,IF(F9="Iode-131-45%-fixation",Radiopharmaceutiques!E5,"")))) -> Cancer poly-métastasé | F9: Iode-131-25%-fixation
A10: Débit de dose à 1m (µSv/h) en sortie de chambre | F10: 20
A11: Taille patient (cm) | F11: 160
A13: Eléments optionnels (en bleu)
A14: =IF(F9="Non défini", "Période effective (j) (obligatoire à renseigner dans ce cas)","Période effective (j) imposée par l'utilisateur (laisser vide sinon)") -> Période effective (j) imposée par l'utilisateur (laisser vide sinon)
A15: Scénario utilisateur (éventuel) | E15: Temps (h) | F15: Distance (m)
A16: Durée à la distance X | E16: 8 | F16: 0.3
A17: Durée à 1 m (valeur non nulle obligatoire) | E17: 3 | F17: 1
A18: Limite dosimétrique (mSv) | E18: 1 | F18: =IF(F9="Non défini",IF(F14="","Erreur")) -> FALSE
E20: Période effective retenue en jours : | F20: =IF(F14="",IF(F9="Non défini","Renseigner la période", (VLOOKUP((F9),(Radiopharmaceutiques!$A$2:$B$15),2,0)/24)), F14) -> 2.53
E21: Période effective retenue en heures : | F21: =IF(F18="Erreur","",F20*24) -> 60.72
A23: Scénario | E23: Durée restriction (jours) | F23: Conditions
A24: Contact avec le (la) conjoint(e) > 60 ans | E24: =IF(AND(F14=0,F18="Erreur"),"",IF(Radiopharmaceutiques!J40<0,0,ROUND(Radiopharmaceutiques!J40,0))) -> 0 | F24: 8 h à 0,3 m et 3 h à 1 m, limite 15 mSv
A25: Contact avec le (la) conjoint(e) < 60 ans | E25: =IF(AND(F14=0,F18="Erreur"),"",IF(Radiopharmaceutiques!J41<0,0,ROUND(Radiopharmaceutiques!J41,0))) -> 1 | F25: 8 h à 0,3 m et 3 h à 1 m, limite 3 mSv | G25: Notice d'utilisation
A26: Contact avec la conjointe enceinte | E26: =IF(AND(F14=0,F18="Erreur"),"",IF(Radiopharmaceutiques!J42<0,0,ROUND(Radiopharmaceutiques!J42,0))) -> 5 | F26: 8 h à 0,3 m et 3 h à 1 m, limite 1 mSv
A27: Transport en commun | E27: =IF(AND(F14=0,F18="Erreur"),"",IF(Radiopharmaceutiques!J43<0,0,ROUND(Radiopharmaceutiques!J43,0))) -> 0 | F27: 3 h à 0,5 m, limite 1 mSv
A28: Contact avec un enfant (<3 ans) au retour à la maison | E28: =IF(AND(F14=0,F18="Erreur"),"",IF(Radiopharmaceutiques!J44<0,0,ROUND(Radiopharmaceutiques!J44,0))) -> 0 | F28: 9 h à 1 m, limite 1 mSv
A29: Contact avec un enfant (entre 3 et 11 ans) au retour à la maison | E29: =IF(AND(F14=0,F18="Erreur"),"",IF(Radiopharmaceutiques!J45<0,0,ROUND(Radiopharmaceutiques!J45,0))) -> 0 | F29: 2 h à 0,5 m et 2 h à 1 m, limite 1 mSv
A30: Contact avec des collègues de travail | E30: =IF(AND(F14=0,F18="Erreur"),"",IF(Radiopharmaceutiques!J46<0,0,ROUND(Radiopharmaceutiques!J46,0))) -> 0 | F30: 6 h à 1 m, limite 1 mSv
A31: Scénario utilisateur | E31: =IF(E17>0, IF(ISERROR(Radiopharmaceutiques!J47),"-", IF(Radiopharmaceutiques!J47<0,0, ROUND(Radiopharmaceutiques!J47,0))),"-") -> 5 | F31: =CONCATENATE(E16," h à ",F16," m et ",E17," h à ",F17," m,",CHAR(10)," limite ",E18," mSv") -> 8 h à 0,3 m et 3 h à 1 m, limite 1 mSv
A32: Version 1.3 du 13/03/2023 | F32: =CONCATENATE("Heure d'impression : ", HOUR(NOW()), " h ", MINUTE(NOW())) -> Heure d'impression : 8 h 37

Sheet Radiopharmaceutiques
A1: Radiopharmaceutique | B1: Periode effective en heure | C1: Reference | D1: Remarque | E1: Situation clinique
A2: Iode-131-0%-fixation | B2: 11.1 | C2: ICRP53 | E2: Cancer opéré
A3: Iode-131-5%-fixation | B3: 12.1 | C3: ICRP53 | D3: en considérant la période au niveau de la thyroïde | E3: Cancer oligo-métastasé
A4: Iode-131-25%-fixation | B4: =2.53*24 -> 60.72 | C4: ICRP53 | D4: en considérant la période au niveau de la thyroïde | E4: Cancer poly-métastasé
A5: Iode-131-45%-fixation | B5: =4.56*24 -> 109.44 | C5: ICRP53 | D5: en considérant la période au niveau de la thyroïde | E5: Maladie de Basedow
A6: Radium-223 | B6: =11.43*24 -> 274.32 | D6: Demi vie physique
A7: PSMA-177Lu | B7: 40 | C7: EANM procedure guidelines for radionuclide therapy with 177Lu-labelled PSMA-ligands 2019 | D7: Valeur la plus longue proposée | H7: Description scénario | I7: Temps (h) | J7: Distance (m) | K7: Limite dosimétrique (mSv)
A8: Synovectomie-90Y | B8: =2.67*24 -> 64.08 | C8: EANM Procedure Guidelines for Radiosynovectomy 2003 | D8: Demi vie physique | H8: Contact avec le (la) conjoint(e) | I8: 8 | J8: 0.3 | K8: 15 | L8: Si age > 60 ans
A9: Synovectomie-186Re | B9: =3.7*24 -> 88.8 | C9: EANM Procedure Guidelines for Radiosynovectomy 2003 | D9: Demi vie physique | I9: 3 | J9: 1 | K9: 3 | L9: Si age < 60 ans
A10: Synovectomie-169Er | B10: =9.4*24 -> 225.6 | C10: EANM Procedure Guidelines for Radiosynovectomy 2003 | D10: Demi vie physique | H10: Contact conjointe enceinte | I10: 8 | J10: 0.3 | K10: 1
A11: Microsphères-90Y | B11: 64.2 | C11: EANM procedure guideline for the treatment of liver cancer and liver metastases with intra-arterial radioactive compounds 2011 | D11: Demi vie physique | I11: 3 | J11: 1
A12: Lipiodol-131I | B12: =8.04*24 -> 192.96 | C12: EANM procedure guideline for the treatment of liver cancer and liver metastases with intra-arterial radioactive compounds 2011 | D12: Demi vie physique | H12: Transport en commun | I12: 3 | J12: 0.5 | K12: 1
A13: Lutétium-177 NET | B13: 100 | C13: Fitschen et al, Z Med Phys 2011, Levart et al, EJNMMI Phys 2019 | D13: Demi vie effective | H13: Contact avec un enfant (<3 ans) au retour à la maison | I13: 9 | J13: 1 | K13: 1
A14: MIBG-131I | B14: =1.4*24 -> 33.6 | C14: ICRP53 | D14: période biologique la plus longue | H14: Contact avec un enfant (entre 3 et 11 ans) au retour à la maison | I14: 2 | J14: 0.5 | K14: 1
A15: Non défini | I15: 2 | J15: 1
H16: Contact avec des collègues de travail | I16: 6 | J16: 1 | K16: 1
H17: Scénario distance 1 | I17: =Présentation!E16 -> 8 | J17: =Présentation!F16 -> 0.3 | K17: =Présentation!E18 -> 1
H18: Scénario distance 2 | I18: =Présentation!E17 -> 3 | J18: =Présentation!F17 -> 1
H21: Facteur commun | I21: =(Présentation!F20*24/LN(2))/(1-EXP(-(LN(2)/Présentation!F20))) -> 365.5409569
H23: Paramètre commun | I23: Facteur k
H26: =(1-EXP(-((LN(2)/Présentation!$F$20)*(I8/24)))) -> 0.08727782089 | I26: =ATAN(Présentation!$F$11/(2*J8*100))/(Présentation!$F$11*J8/200) -> 5.050106902
H27: =(1-EXP(-((LN(2)/Présentation!$F$20)*(I9/24)))) -> 0.03366663137 | I27: 1
H28: =(1-EXP(-((LN(2)/Présentation!$F$20)*(I12/24)))) -> 0.03366663137 | I28: =ATAN(Présentation!$F$11/(2*J12*100))/(Présentation!$F$11*J12/200) -> 2.530492529
H29: =(1-EXP(-((LN(2)/Présentation!$F$20)*(I13/24)))) -> 0.09763772708 | I29: 1
H30: =(1-EXP(-((LN(2)/Présentation!$F$20)*(I14/24)))) -> 0.02257228118 | I30: =ATAN(Présentation!$F$11/(2*J14*100))/(Présentation!$F$11*J14/200) -> 2.530492529
H31: =(1-EXP(-((LN(2)/Présentation!$F$20)*(I15/24)))) -> 0.02257228118 | I31: 1
H32: =(1-EXP(-((LN(2)/Présentation!$F$20)*(I16/24)))) -> 0.06619982067 | I32: =ATAN(Présentation!$F$11/(2*J16*100))/(Présentation!$F$11*J16/200) -> 0.8434261778
H33: =(1-EXP(-((LN(2)/Présentation!$F$20)*(I17/24)))) -> 0.08727782089 | I33: =ATAN(Présentation!$F$11/(2*J17*100))/(Présentation!$F$11*J17/200) -> 5.050106902
H34: =(1-EXP(-((LN(2)/Présentation!$F$20)*(I18/24)))) -> 0.03366663137 | I34: 1
H39: Dénominateur | I39: Ratio | J39: Jour
H40: =(H26*I26+H27*I27)*$I$21 -> 173.423215 | I40: =K8*1000/H40 -> 86.49361046 | J40: =-(Présentation!$F$20/LN(2))*LN(I40/Présentation!$F$10) -> -5.344861708
I41: =K9*1000/H40 -> 17.29872209 | J41: =-(Présentation!$F$20/LN(2))*LN(I41/Présentation!$F$10) -> 0.5296163719
I42: =K10*1000/H40 -> 5.766240697 | J42: =-(Présentation!$F$20/LN(2))*LN(I42/Présentation!$F$10) -> 4.539571499
H43: =(H28*I28)*$I$21 -> 31.14158892 | I43: =K12*1000/H43 -> 32.11139941 | J43: =-(Présentation!$F$20/LN(2))*LN(I43/Présentation!$F$10) -> -1.728206413
H44: =(H29*I29)*$I$21 -> 35.69058819 | I44: =K13*1000/H44 -> 28.01859119 | J44: =-(Présentation!$F$20/LN(2))*LN(I44/Présentation!$F$10) -> -1.230552576
H45: =(H30*I30+H31*I31)*$I$21 -> 29.13042312 | I45: =K14*1000/H45 -> 34.32837195 | J45: =-(Présentation!$F$20/LN(2))*LN(I45/Présentation!$F$10) -> -1.971885638
H46: =(H32*I32)*$I$21 -> 20.40985568 | I46: =K16*1000/H46 -> 48.99593686 | J46: =-(Présentation!$F$20/LN(2))*LN(I46/Présentation!$F$10) -> -3.270435149
H47: =(H33*I33+H34*I34)*$I$21 -> 173.423215 | I47: =K17*1000/H47 -> 5.766240697 | J47: =IF(H47>0,-(Présentation!$F$20/LN(2))*LN(I47/Présentation!$F$10),"") -> 4.539571499
